{"text_format":"1","workbook":"xlsx","n_sheets":3,"sheets":["Simulateur","Calculs","Feuil3"],"not_rendered":{"charts":0,"images":1,"macros":1,"external_links":0,"defined_names":0,"comments":1,"pivot_tables":0},"unopened":[],"bounds":{"document_bytes":16777216,"sheet_cells":100000,"rows_first":2000,"rows_last":500,"rows_between":2000,"halvings":0,"cell_chars":16384,"cell_head_chars":4096},"cells_cut":0,"cells_raw":0,"read":"whole","date_system":"1900"}

{"sheet":"Simulateur","index":0,"n_rows":32,"n_cols":21,"rows_kept":32,"cut":false,"hidden":false,"merged":[[29,14,30,14],[15,1,15,2],[31,9,32,12],[31,13,32,13],[31,14,32,14],[27,9,27,12],[28,9,28,12],[29,9,30,12],[29,13,30,13],[25,13,26,13],[25,14,26,14],[17,6,17,7],[24,1,24,2],[22,1,22,2],[20,1,20,3],[21,1,21,3],[1,5,1,6],[1,7,1,10],[14,9,14,12],[15,9,15,12],[16,9,16,12],[16,6,16,7],[3,9,3,12],[5,1,5,7],[10,1,10,3],[16,1,16,5],[7,1,7,3],[8,9,8,12],[9,9,9,12],[13,9,13,12],[11,1,11,3],[12,1,12,3],[13,1,13,3],[17,1,17,5],[25,1,25,3],[26,1,26,2],[25,9,26,12],[14,1,14,2]]}
[]
[null,null,null,null,null,"Choix de la simulation",null,"Simulation sans déduction ni réduction",null,null,null,null,null,"Sans option pour le versement libératoire","Avec option pour le versement libératoire"]
[]
[null,null,null,null,null,null,null,null,null,"Revenus Travailleur Indépendant du foyer fiscal",null,null,null,{"$f":"IF(M4=\"\",\"\",M4*0.29)","v":""},{"$f":"IF(M4=\"\",\"\",M4*0.29)","v":""}]
[null,null,null,null,null,null,null,null,null,null,"Monsieur","Madame","Autre",null,null,null,null,null,null,null,"célibataire"]
[null,{"$f":"IF(H2=\"Simulation sans déduction ni réduction\",\"Simulation faite sans déduction ni réduction d'impôt\",\"\")","v":"Simulation faite sans déduction ni réduction d'impôt"},null,null,null,null,null,null,null,"- Ventes",{"$f":"IF(E9=0,\"\",E9*0.29)","v":""},{"$f":"IF(F9=0,\"\",F9*0.29)","v":""},{"$f":"IF(G9=0,\"\",G9*0.29)","v":""},{"$f":"IF(H2=\"Simulation sans déduction ni réduction\",SUM(K6:M6),\"\")","v":0},{"$f":"IF(H2=\"Simulation sans déduction ni réduction\",SUM(K6:M6),\"\")","v":0},null,"Simulation sans déduction ni réduction",null,null,null,"divorcé"]
[null,null,null,null,null,null,null,null,null,"- Prestations",{"$f":"IF(E10=0,\"\",E10*0.5)","v":""},{"$f":"IF(F10=0,\"\",F10*0.5)","v":""},{"$f":"IF(G10=0,\"\",G10*0.5)","v":""},{"$f":"IF(H2=\"Simulation sans déduction ni réduction\",SUM(K7:M7),\"\")","v":0},{"$f":"IF(H2=\"Simulation sans déduction ni réduction\",SUM(K7:M7),\"\")","v":0},null,"Simulation avec déduction et réduction",null,null,null,"veuf"]
[null,{"$f":"IF(H2=\"Simulation sans déduction ni réduction\",\"Activité Travailleur Indépendant\",\"\")","v":"Activité Travailleur Indépendant"},null,null,{"$f":"IF(H2=\"Simulation sans déduction ni réduction\",\"Mr\",\"\")","v":"Mr"},{"$f":"IF(H2=\"Simulation sans déduction ni réduction\",\"Mme\",\"\")","v":"Mme"},{"$f":"IF(H2=\"Simulation sans déduction ni réduction\",\"Autre\",\"\")","v":"Autre"},{"$f":"IF(H2=\"Simulation sans déduction ni réduction\",\"Total\",\"\")","v":"Total"},null,"- Libéral",{"$f":"IF(E11=0,\"\",E11*0.66)","v":""},{"$f":"IF(F11=0,\"\",F11*0.66)","v":""},{"$f":"IF(G11=0,\"\",G11*0.66)","v":""},{"$f":"IF(H2=\"Simulation sans déduction ni réduction\",SUM(K8:M8),\"\")","v":0},{"$f":"IF(H2=\"Simulation sans déduction ni réduction\",SUM(K8:M8),\"\")","v":0},null,null,null,null,null,"marié"]
[null,{"$f":"IF(H2=\"Simulation sans déduction ni réduction\",\"CA Ventes et Location de meublés (BIC)\",\"\")","v":"CA Ventes et Location de meublés (BIC)"},null,null,null,null,null,{"$f":"IF(H2=\"Simulation sans déduction ni réduction\",SUM(E9:G9),\"\")","v":0},null,"- Revenus non commerciaux  (feuille impôt 2016)",null,null,null,{"$f":"IF(H2=\"Simulation avec déduction et réduction\",SUM(E24:G24),\"\")","v":""},{"$f":"IF(H2=\"Simulation avec déduction et réduction\",SUM(E24:G24),\"\")","v":""},null,null,null,null,null,"pacsé"]
[null,{"$f":"IF(H2=\"Simulation sans déduction ni réduction\",\"CA Prestations de services (BIC)\",\"\")","v":"CA Prestations de services (BIC)"},null,null,null,null,null,{"$f":"IF(H2=\"Simulation sans déduction ni réduction\",SUM(E10:G10),\"\")","v":0},null,"Revenus activité salariée",null,null,null,{"$f":"IF(M10=\"\",\"\",M10*0.9)","v":""},{"$f":"IF(M10=\"\",\"\",M10*0.9)","v":""}]
[null,{"$f":"IF(H2=\"Simulation sans déduction ni réduction\",\"CA Activité libérale RSI et CIPAV (BNC)\",\"\")","v":"CA Activité libérale RSI et CIPAV (BNC)"},null,null,null,null,null,{"$f":"IF(H2=\"Simulation sans déduction ni réduction\",SUM(E11:G11),\"\")","v":0},null,null,"Monsieur","Madame","Autre",null,null,null,null,"Ventes","Prestations","Libéral"]
[null,{"$f":"IF(H2=\"Simulation sans déduction ni réduction\",\"Activité Salariée\",\"\")","v":"Activité Salariée"},null,null,null,null,null,null,null,"- Sans déduction",{"$f":"IF(E13=0,\"\",E13*0.9)","v":""},{"$f":"IF(F13=0,\"\",F13*0.9)","v":""},{"$f":"IF(G13=0,\"\",G13*0.9)","v":""},{"$f":"IF(H2=\"Simulation sans déduction ni réduction\",SUM(K12:M12),\"\")","v":0},{"$f":"IF(H2=\"Simulation sans déduction ni réduction\",SUM(K12:M12),\"\")","v":0},null,"Mr",{"$f":"IF(E25=\"Ventes\",E23*M18,0)","v":0},{"$f":"IF(E25=\"Prestations\",E23*M19,0)","v":0},{"$f":"IF(E25=\"Libéral\",E23*M20,0)","v":0}]
[null,{"$f":"IF(H2=\"Simulation sans déduction ni réduction\",\"Salaires et assimilés bruts imposables\",\"\")","v":"Salaires et assimilés bruts imposables"},null,null,null,null,null,null,null,"- Avec déduction",{"$f":"IF(E21=0,\"\",E21)","v":""},{"$f":"IF(F21=0,\"\",F21)","v":""},{"$f":"IF(G21=0,\"\",G21)","v":""},{"$f":"IF(H2=\"Simulation avec déduction et réduction\",SUM(K13:M13),\"\")","v":""},{"$f":"IF(H2=\"Simulation avec déduction et réduction\",SUM(K13:M13),\"\")","v":""},null,"Mme",{"$f":"IF(F25=\"Ventes\",F23*M18,0)","v":0},{"$f":"IF(F25=\"Prestations\",F23*M19,0)","v":0},{"$f":"IF(F25=\"Libéral\",F23*M20,0)","v":0}]
[null,{"$f":"IF(H2=\"Simulation sans déduction ni réduction\",\"Foyer fiscal\",\"\")","v":"Foyer fiscal"},null,null,null,null,null,null,null,"Revenu fiscal de référence du foyer",null,null,null,{"$f":"IF(H2=\"Simulation sans déduction ni réduction\",N6+N7+N8+N12,IF(H2=\"\",0,N9+N13))","v":0},{"$f":"IF(H2=\"Simulation sans déduction ni réduction\",O6+O7+O8+O12,IF(H2=\"\",0,O9+O13))","v":0},null,"Autre",{"$f":"IF(G25=\"Ventes\",G23*M18,0)","v":0},{"$f":"IF(G25=\"Prestations\",G23*M19,0)","v":0},{"$f":"IF(G25=\"Libéral\",G23*M20,0)","v":0}]
[null,{"$f":"IF(H2=\"Simulation sans déduction ni réduction\",\"Nombre de parts\",\"\")","v":"Nombre de parts"},null,1,null,null,null,null,null,"Nombre de parts dans le foyer fiscal",null,null,null,{"$f":"IF(H2=\"Simulation sans déduction ni réduction\",D15,D27)","v":1},{"$f":"IF(H2=\"Simulation sans déduction ni réduction\",D15,D27)","v":1},null,null,{"$f":"SUM(R12:R14)","v":0},{"$f":"SUM(S12:S14)","v":0},{"$f":"SUM(T12:T14)","v":0}]
[null,"Situation du foyer fiscal",null,"célibataire",null,null,null,null,null,"Base d'imposition",null,null,null,{"$f":"IF(N15=0,0,N14/N15)","v":0},{"$f":"IF(O15=0,0,O14/O15)","v":0}]
[null,{"$f":"IF(H2=\"Simulation avec déduction et réduction\",\"Simulation faite avec déduction et réduction d'impôt\",\"\")","v":""},null,null,null,null,{"$f":"IF(H2=\"Simulation avec déduction et réduction\",\"Simulateur impôts\",\"\")","v":""},null,null,"Calcul de l'impôt à payer"]
[null,{"$f":"IF(H2=\"Simulation avec déduction et réduction\",\"Feuille d'imposition 2017 sur revenus 2016\",\"\")","v":""},null,null,null,null,"Accés",null,null," - sur les revenus de travailleur indépendant",null,null,0.01,null,{"$f":"IF(H2=\"Simulation sans déduction ni réduction\",H9*M18,R15)","v":0},null,{"$f":"O18","v":0},"Ventes",{"$f":"SUM(E22:G22)","v":0}]
[null,null,null,null,null,null,null,null,null,null,null,null,1.7000000000000001E-2,null,{"$f":"IF(H2=\"Simulation sans déduction ni réduction\",H10*M19,S15)","v":0},null,{"$f":"O19","v":0},"Prestations"]
[null,null,null,null,{"$f":"IF(H2=\"Simulation avec déduction et réduction\",\"Mr\",\"\")","v":""},{"$f":"IF(H2=\"Simulation avec déduction et réduction\",\"Mme\",\"\")","v":""},{"$f":"IF(H2=\"Simulation avec déduction et réduction\",\"Autre\",\"\")","v":""},null,null,null,null,null,2.1999999999999999E-2,null,{"$f":"IF(H2=\"Simulation sans déduction ni réduction\",H11*M20,T15)","v":0},null,{"$f":"O20","v":0},"Libéral"]
[null,{"$f":"IF(H2=\"Simulation avec déduction et réduction\",\"Revenus imposables - avec déductions\",\"\")","v":""},null,null,null,null,null,null,null," - sur les revenus salariés",null,null,null,null,"Taux effectif d'imposition",null,{"$f":"SUM(Q18:Q20)","v":0}]
[null,{"$f":"IF(H2=\"Simulation avec déduction et réduction\",\"Réductions d'impôt\",\"\")","v":""},null,null,null,null,null,null,null,"    . 2ème tranche : de 9 807 € à 27 086 €",null,null,0.14000000000000001,{"$f":"Calculs!D10","v":0},{"$f":"Calculs!B6","v":0}]
[null,{"$f":"IF(H2=\"Simulation avec déduction et réduction\",\"Revenus non commerciaux\",\"\")","v":""},null,{"$f":"IF(H2=\"Simulation avec déduction et réduction\",\"Déclarés (CA)\",\"\")","v":""},null,null,null,null,null,"    . 3ème tranche : de 27 086 € à 72 617 €",null,null,0.3,{"$f":"Calculs!D11","v":0},"Application de ce taux sur"]
[null,null,null,{"$f":"IF(H2=\"Simulation avec déduction et réduction\",\"Nets\",\"\")","v":""},null,null,null,null,null,"    . 4ème tranche : de 72 617 € à 153 783 €",null,null,0.41,{"$f":"Calculs!D12","v":0},"le montant de l'impôt :"]
[null,null,null,{"$f":"IF(H2=\"Simulation avec déduction et réduction\",\"Nature\",\"\")","v":""},null,null,null,null,null,"    . 5ème tranche : plus de 153 783 €",null,null,0.45,{"$f":"Calculs!D13","v":0},{"$f":"Calculs!B7","v":0}]
[null,{"$f":"IF(H2=\"Simulation avec déduction et réduction\",\"Foyer Fiscal\",\"\")","v":""},null,null,null,null,null,null,null,"Impôt brut sur le revenu",null,null,null,{"$f":"IF(Calculs!D14<=61,\"non imposable\",(SUM(N22:N25)*N15)-S18)","v":"non imposable"},{"$f":"O25+O18+O19+O20","v":0}]
[null,{"$f":"IF(H2=\"Simulation avec déduction et réduction\",\"Nombre de parts\",\"\")","v":""}]
[null,null,null,null,null,null,null,null,null,"Décote faibles revenus",null,null,null,{"$f":"IF(N26=\"non imposable\",0,IF(D15=1,Calculs!G5,IF(D15=2,Calculs!G6,0)))","v":0},{"$f":"IF(O12=0,0,IF(O13=0,0,N28))","v":0}]
[null,null,null,null,null,null,null,null,null,"Réduction sous conditions de revenus 20%",null,null,null,{"$f":"IF(D15=1,Calculs!N7,IF(D15=2,Calculs!N6,IF(D15=1.5,Calculs!N8,IF(D15>2,Calculs!N9,0))))","v":0},{"$f":"IF(O12=0,0,IF(O13=0,0,N29))","v":0}]
[null,null,null,null,null,null,null,null,null,"Impôt net après décote et réduction",null,null,null,{"$f":"IF(N26=\"non imposable\",\"non imposable\",IF(N28>N26,0,N26-N28-N29))","v":"non imposable"},{"$f":"IF(O26=\"non imposable\",\"non imposable\",IF((O28+O29)>O25,Q21,O26-O28-O29))","v":0},null,{"$f":"ROUND(O30, 0)","v":0}]
[]
[null,null,null,null,null,null,null,null,null,"Impôt à payer",null,null,null,{"$f":"IF(N30=\"non imposable\",\"non imposable\",IF(N30<61,\"non imposable\",N30))","v":"non imposable"},{"$f":"IF(O30=\"non imposable\",\"non imposable\",Q30&\" € dont \"&Q21&\" € de PFL\")","v":"0 € dont 0 € de PFL"}]

{"sheet":"Calculs","index":1,"n_rows":14,"n_cols":14,"rows_kept":14,"cut":false,"hidden":false,"merged":[[0,5,0,7],[0,8,0,12],[5,8,5,9],[11,8,11,9]]}
["total revenus salariés imposables sans déduction",{"$f":"IF(D1=0,Simulateur!N12,0)","v":0},null,{"$f":"IF(Simulateur!H2=\"Simulation sans déduction ni réduction\",0,IF(Simulateur!H2=\"Simulation avec déduction et réduction\",1,\"\"))","v":0},null,"Décote",null,null,"Réduction 20% et progréssive"]
["total revenus salariés imposables avec déduction",{"$f":"Simulateur!N13","v":""},null,null,null,"Célibataire",1569,1177,"1 part",18685,20705,"Célib. Etc.",2000]
["Total revenus ME imposables sans déduction",{"$f":"IF(D1=0,Simulateur!N6+Simulateur!N7+Simulateur!N8,0)","v":0},null,null,null,"Couple",2585,1939,"2 part",37370,41410,"marié",4000]
["Total revenus ME imposables avec déduction",{"$f":"Simulateur!N9","v":""},null,null,null,null,null,null,"1/2 part sup.",3737,3737]
["Total revenus imposables",{"$f":"Simulateur!N14","v":0},null,null,null,"Calcul décote",{"$f":"IF(AND(Simulateur!D15=1,Simulateur!N26<G2),H2-(Simulateur!N26*75%),0)","v":0},null,null,null,"iR Brut","parts","RFR"]
["Taux effectif imposition",{"$f":"IF(B5=0,0,IF(D1=0,B1/B5,B2/B5))","v":0},null,null,null,"Calcul décote",{"$f":"IF(AND(Simulateur!D15=2,Simulateur!N26<G3),H3-(Simulateur!N26*75%),0)","v":0},null,"Calcul réduc 20%",null,{"$f":"IF(Simulateur!N26=\"non imposable\",0,Simulateur!N26-Simulateur!N28)","v":0},{"$f":"Simulateur!D15","v":1},{"$f":"Simulateur!N14","v":0},{"$f":"IF(AND(AND(L6=2,M6<J3,K6>61)),K6*20%,0)","v":0}]
[null,{"$f":"IF(B6=0,0,IF(Simulateur!N26=\"non imposable\",0,Simulateur!N26*B6))","v":0},null,null,null,null,null,null,null,null,null,{"$f":"L6-2","v":-1},{"$f":"IF(L7=0.5,J4*1,0)","v":0},{"$f":"IF(AND(AND(L6=1,M6<J2,K6>61)),K6*20%,0)","v":0}]
[null,null,null,null,null,null,null,null,null,null,null,null,{"$f":"IF(L7=1,J4*2,0)","v":0},{"$f":"IF(AND(AND(L6=1.5,M6<(J2+J4),K6>61)),K6*20%,0)","v":0}]
["1ere tranche",{"$f":"Simulateur!N16","v":0},{"$f":"IF(B9<=9807,0,B9-9807)","v":0},0,null,null,null,null,null,null,null,null,{"$f":"IF(L7=1.5,J4*3,0)","v":0},{"$f":"IF(AND(AND(L6>2,M6<(J3+M11),K6>61)),K6*20%,0)","v":0}]
["2eme tranche",{"$f":"C9","v":0},{"$f":"IF(B10>27086,B10-27086,0)","v":0},{"$f":"B10*14%","v":0},null,null,null,null,null,null,null,null,{"$f":"IF(L7=2,J4*4,0)","v":0}]
["3ème tranche",{"$f":"C10","v":0},{"$f":"IF(B11>72617,B11-72617,0)","v":0},{"$f":"B11*30%","v":0},null,null,null,null,null,null,null,null,{"$f":"SUM(M7:M10)","v":0}]
["4eme tranche",{"$f":"C11","v":0},{"$f":"IF(B12>153783,B12-153783,0)","v":0},{"$f":"B12*41%","v":0},null,null,null,null,"Calcul baisse dégressive 20%"]
["5eme tranche",{"$f":"C12","v":0},null,{"$f":"B13*45%","v":0}]
[null,null,null,{"$f":"SUM(D9:D13)","v":0}]

{"sheet":"Feuil3","index":2,"n_rows":0,"n_cols":0,"rows_kept":0,"cut":false,"hidden":false,"merged":[]}